[Event "41st Zalakaros Festival 2022"]
[Site "Zalakaros"]
[Date "2022.06.09"]
[Round "5.6"]
[White "Nemeth, Zalan"]
[Black "Peczely, Sebastian Zsombor"]
[Result "0-1"]
[ECO "A15"]
[WhiteElo "2177"]
[BlackElo "2313"]
[Annotator "TA"]
[PlyCount "94"]
[EventDate "2022.06.05"]
[EventType "swiss"]
[EventCountry "HUN"]
[SourceTitle "playchess.com"]
[Source "ChessBase"]
[SourceQuality "1"]
[TimeControl "40/5400+30:1800+30"]

{[%evp 9,94,34,18,0,0,0,104,106,108,111,112,115,113,100,102,106,105,106,113,114,96,22,22,37,54,47,47,29,32,0,0,0,91,-33,0,0,0,-120,-117,-123,-123,-117,-120,-138,-135,-214,-199,-226,-221,-229,-224,-222,-171,-228,-227,-234,-242,-239,-239,-310,-282,-318,-279,-326,-331,-470,-427,-406,-346,-337,-325,-372,-365,-617,-615,-597,-585,-741,-720,-696,-660,-735,-718,-709,-665,-1242,-1054]} 1. c4 {[%emt 0:00:32]} Nf6 {[%emt 0:02:40]} 2. g3 {[%emt 0:00:05]} c6 {[%emt 0:00:11]} 3. Bg2 {[%emt 0:00:06]} d5 {[%emt 0:00:09]} 4. Nf3 {[%emt 0:00:06]} Bf5 {[%emt 0:00:33]} 5. Qb3 {[%emt 0:02:04]} Qb6 {[%emt 0:06:18]} 6. cxd5 {[%emt 0:04:35] A11: English Opening: 1...c6.} (6. d3 {keeps more tension.} Qxb3 7. axb3 e6 8. Be3) 6... Qxb3 {[%emt 0:05:42]} 7. axb3 {[%emt 0:00:10]} Bxb1 {[%emt 0:00:17] [#]} (7... cxd5 $11 8. d3 Nc6) 8. dxc6 $1 $16 {[%emt 0:00:12] White is better.} ({Of course not} 8. Rxb1 $6 cxd5 9. O-O e6 $11) 8... Nxc6 {[%emt 0:01:38] Hoping for ...Be4.} 9. Rxb1 {[%emt 0:00:06]} e6 {[%emt 0:00:24] [#]} 10. O-O $146 {[%emt 0:03:16]} ({Predecessor:} 10. d3 Bc5 11. Bd2 Ke7 12. e3 Rhc8 13. Ke2 h6 14. Rhc1 Bd6 15. Rc4 Nd5 16. Ne1 {1-0 (42) Danner,L (2013)-Thynne,T (1907) Rhodes 2019}) 10... Be7 {[%emt 0:00:36]} 11. d3 {[%emt 0:01:49]} O-O {[%emt 0:00:05]} 12. Bd2 {[%emt 0:02:17]} Rfd8 {[%emt 0:05:25]} 13. Rfc1 {[%emt 0:04:45]} h6 {[%emt 0:03:59]} 14. Rc4 {[%emt 0:08:05]} a5 {[%emt 0:01:42]} 15. Rxc6 {[%emt 0:11:28]} bxc6 $11 {[%emt 0:00:07]} 16. Ne5 {[%emt 0:00:03]} Bd6 {[%emt 0:20:41]} 17. Nxc6 {[%emt 0:00:23]} Rdc8 {[%emt 0:00:09]} 18. Nxa5 {[%emt 0:01:14]} Rab8 {[%emt 0:00:27]} 19. Bc3 {[%emt 0:06:38]} Nd5 {[%emt 0:02:02]} 20. Bd4 {[%emt 0:09:45]} Rc2 {[%emt 0:04:05]} (20... Bb4 $11 21. Nc4 Bc5 22. Bxc5 Rxc5) 21. e4 {[%emt 0:07:10]} (21. Nc4 $16 Be7 22. Kf1) 21... Nb4 {[%emt 0:04:06] And now ...Bc5 would win.} 22. Nc4 {[%emt 0:01:53]} Be7 {[%emt 0:13:32]} 23. Bf3 {[%emt 0:06:23]} (23. Bf1 $11 {remains equal.}) 23... Nxd3 $17 {[%emt 0:02:25] Black converts the advantage convincingly.} 24. Bd1 {[%emt 0:01:20]} Rc1 {[%emt 0:00:07] Black is more active.} 25. Rxc1 {[%emt 0:00:06]} Nxc1 {[%emt 0:00:04]} 26. Na5 {[%emt 0:03:16]} Rb5 {[%emt 0:02:31]} 27. Bc3 {[%emt 0:02:53]} (27. Nc6 $17 Bc5 28. Bc3) 27... Bb4 $19 {[%emt 0:04:28]} 28. Nc4 {[%emt 0:05:58] [#]} Bxc3 $1 {[%emt 0:00:26]} 29. bxc3 {[%emt 0:00:03]} Nxb3 {[%emt 0:00:10][%mdl 4096] Endgame KRN-KBN} 30. Kg2 {[%emt 0:00:55]} Nc5 {[%emt 0:02:18]} 31. Kf3 {[%emt 0:01:03]} (31. Bc2 {is a better defense.}) 31... Rb1 {[%emt 0:04:15]} 32. Bc2 {[%emt 0:00:08]} Rc1 {[%emt 0:03:01]} 33. Ne3 {[%emt 0:00:13]} g5 {[%emt 0:01:06]} 34. e5 {[%emt 0:03:36]} Kg7 {[%emt 0:00:38]} 35. c4 {[%emt 0:01:57]} h5 {[%emt 0:05:46]} 36. Bd1 {[%emt 0:06:04]} Nd3 {[%emt 0:01:52]} 37. Be2 {[%emt 0:00:04]} (37. Kg2 $142) 37... Nxe5+ {[%emt 0:00:33]} 38. Ke4 {[%emt 0:00:13]} Nd7 {[%emt 0:00:44]} 39. Kd4 {[%emt 0:02:13]} Kg6 {[%emt 0:00:30]} 40. f4 {[%emt 0:00:00]} g4 {[%emt 0:00:00] Inhibits Bf3.} 41. f5+ $2 {[%emt 0:03:42]} (41. Bf1) 41... Kf6 {[%emt 0:02:25] Black is clearly winning.} 42. fxe6 {[%emt 0:00:17]} fxe6 {[%emt 0:00:08][%cal Bf7e6,Be6e5,Be5e4][%mdl 32]} 43. Nd1 {[%emt 0:05:24]} e5+ {[%emt 0:02:27]} 44. Ke3 {[%emt 0:00:14]} Nc5 {[%emt 0:01:23]} 45. Nf2 {[%emt 0:01:23]} Rc3+ {[%emt 0:00:08]} 46. Kd2 {[%emt 0:01:14]} Ra3 {[%emt 0:00:04] Strongly threatening ...e4.} 47. Bd1 {[%emt 0:02:00]} e4 {[%emt 0:00:52] Weighted Error Value: White=0.48/Black=0.16 (very precise)} 0-1

[Event "41st Zalakaros Festival 2022"]
[Site "Zalakaros"]
[Date "2022.06.09"]
[Round "5.7"]
[White "Metaxasz, Vaszilisz"]
[Black "Leszko, Bence"]
[Result "0-1"]
[ECO "A10"]
[WhiteElo "1973"]
[BlackElo "2248"]
[Annotator "TA"]
[PlyCount "52"]
[EventDate "2022.06.05"]
[EventType "swiss"]
[EventCountry "HUN"]
[SourceTitle "playchess.com"]
[Source "ChessBase"]
[SourceQuality "1"]
[TimeControl "40/5400+30:1800+30"]

{[%evp 9,52,11,5,-19,0,0,0,0,0,-29,-22,-22,-4,-56,-56,-59,-60,-86,-43,-40,-41,-136,-136,-227,-227,-192,-216,-184,-225,-214,-223,-207,-174,-383,-379,-385,-381,-414,-408,-757,-779,-833,-824,-773,-762]} 1. c4 {[%emt 0:00:36]} b6 {[%emt 0:01:51]} 2. Nc3 {[%emt 0:01:45]} Bb7 {[%emt 0:00:06]} 3. e4 {[%emt 0:02:34]} e5 {[%emt 0:00:12]} 4. Nf3 {[%emt 0:10:09]} Nc6 {[%emt 0:00:02]} 5. d3 {[%emt 0:01:51]} Bc5 {[%emt 0:00:38] [#]} 6. Nd5 $146 {[%emt 0:05:15] A10: English Opening: Unusual Replies for Black.} ({Predecessor:} 6. Be2 Nge7 7. a3 a5 8. Rb1 d6 9. O-O O-O 10. Nd5 Nd4 11. b4 axb4 12. axb4 Nxf3+ 13. Bxf3 {½-½ (93) Rakhmanov,A (2629)-Predke,A (2622) St Petersburg 2018}) 6... d6 {[%emt 0:01:46]} 7. Rb1 {[%emt 0:02:16]} a5 {[%emt 0:01:41] Inhibits b4.} 8. Be2 {[%emt 0:06:31] The position is equal.} Nge7 {[%emt 0:00:21]} 9. Be3 {[%emt 0:04:09]} O-O {[%emt 0:00:26]} 10. O-O {[%emt 0:01:26]} f5 {[%emt 0:02:12]} 11. exf5 {[%emt 0:20:47]} (11. a3 $11) 11... Nxf5 $15 {[%emt 0:00:49]} 12. Bg5 {[%emt 0:00:28]} Qd7 {[%emt 0:01:40]} 13. Nh4 {[%emt 0:05:00]} Ncd4 {[%emt 0:07:19]} 14. Bg4 {[%emt 0:01:04][%cal Od5e7]} Bxd5 {[%emt 0:00:22]} 15. Nxf5 {[%emt 0:04:13]} (15. cxd5 $15 Qf7 16. Nxf5 Nxf5 17. a3) 15... Be6 $17 {[%emt 0:04:51] Black is more active.} ({Resist} 15... Rxf5 16. cxd5 Qf7 17. Bxf5 Nxf5 18. Qf3 $16) 16. Ne7+ {[%emt 0:08:13]} (16. Ne3 $17) 16... Kh8 $19 {[%emt 0:00:23]} 17. Bxe6 {[%emt 0:00:24]} Nxe6 {[%emt 0:02:52]} ({Weaker is} 17... Qxe6 18. Nd5 $17) 18. Qh5 {[%emt 0:00:53] [#]} Qe8 {[%emt 0:00:07] Inhibits Ng6+.} 19. Qg4 {[%emt 0:09:21]} Nxg5 {[%emt 0:03:31]} 20. Qxg5 {[%emt 0:00:16]} Qd8 {[%emt 0:01:36] Strongly threatening ...Rf7.} 21. Qh4 $2 {[%emt 0:03:14] [#]} (21. h4) 21... g5 $1 {[%emt 0:09:27]} 22. Qxg5 {[%emt 0:04:19][%cal Oe7g6]} Rf7 {[%emt 0:00:09]} 23. Ng6+ {[%emt 0:00:14]} hxg6 {[%emt 0:00:05]} 24. Qh6+ {[%emt 0:00:29]} (24. Qxg6 $142 Qe7 25. g3) 24... Rh7 {[%emt 0:00:33] Black is clearly winning.} 25. Qxg6 {[%emt 0:00:20]} Qh4 {[%emt 0:00:10][%csl Gh7][%cal Rh4h2]} 26. h3 {[%emt 0:03:08]} Rg8 {[%emt 0:00:17] Weighted Error Value: White=0.48/Black=0.05 (flawless)} 0-1

[Event "41st Zalakaros Festival 2022"]
[Site "Zalakaros"]
[Date "2022.06.09"]
[Round "5.8"]
[White "Demeter, Dorina"]
[Black "Forgacs, Attila Jr."]
[Result "0-1"]
[ECO "A05"]
[WhiteElo "2235"]
[BlackElo "2234"]
[Annotator "TA"]
[PlyCount "74"]
[EventDate "2022.06.05"]
[EventType "swiss"]
[EventCountry "HUN"]
[SourceTitle "playchess.com"]
[Source "ChessBase"]
[SourceQuality "1"]
[TimeControl "40/5400+30:1800+30"]

{[%evp 21,74,41,44,33,52,53,56,41,52,26,63,0,0,0,68,0,0,-118,-99,-130,-63,-70,-52,-80,-81,-97,-77,-112,-68,-122,-122,-171,-153,-557,-558,-533,-486,-553,-525,-2847,-1869,-2682,-2168,-12839,-12839,-12837,-12837,-29982,-29983,-29980,-29981,-29984,-29985,-29987,-29988]} 1. Nf3 {[%emt 0:00:57]} Nf6 {[%emt 0:00:37]} 2. c4 {[%emt 0:00:06]} g6 {[%emt 0:00:04]} 3. Nc3 {[%emt 0:00:04]} Bg7 {[%emt 0:00:04]} 4. e4 {[%emt 0:00:07]} d6 {[%emt 0:00:04]} 5. d4 {[%emt 0:00:05]} O-O {[%emt 0:00:05]} 6. h3 {[%emt 0:00:10]} Nbd7 {[%emt 0:00:10]} 7. Be3 {[%emt 0:00:32]} e5 {[%emt 0:00:09]} 8. d5 {[%emt 0:00:06]} Nc5 {[%emt 0:00:12]} 9. Nd2 {[%emt 0:00:15]} a5 {[%emt 0:00:07]} 10. g4 {[%emt 0:00:17][%cal Bg2g4,Bg4g5][%mdl 32]} c6 $1 {[%emt 0:00:20] 10...c6 scores better than 10...Ne8.} 11. Be2 {[%emt 0:02:29]} Bd7 {[%emt 0:00:22]} 12. g5 {[%emt 0:03:26] E92: King's Indian: Classical: 6 Be2 e5: 7 dxe5, 7 Be3 and Petrosian System without 7...Nbd7.} Ne8 {[%emt 0:00:27]} 13. h4 {[%emt 0:00:57]} cxd5 {[%emt 0:00:24] is the legacy move (13...f5).} 14. cxd5 {[%emt 0:01:30] White is slightly better.} f6 {[%emt 0:00:17] [#]} 15. f3 $146 {[%emt 0:14:38]} ({Predecessor:} 15. a4 fxg5 16. hxg5 Rc8 17. Nb3 b6 18. Bb5 Nc7 19. Bxd7 Qxd7 20. Bxc5 dxc5 21. Qe2 {0-1 (49) Firouzja,A (2728)-Vachier Lagrave,M (2778) Chess.com INT 2020}) 15... Rc8 {[%emt 0:13:29]} 16. Rc1 {[%emt 0:07:42]} (16. Nb3 $14) 16... fxg5 $11 {[%emt 0:02:19]} 17. hxg5 {[%emt 0:00:49]} Rf4 {[%emt 0:03:34]} 18. Bxf4 {[%emt 0:07:01]} (18. Nb3 $14) 18... exf4 {[%emt 0:00:09]} 19. e5 {[%emt 0:02:11]} (19. Kf1 $11) 19... Bxe5 $17 {[%emt 0:21:31]} 20. Nde4 {[%emt 0:05:09] [#]} Bxc3+ {[%emt 0:02:25]} (20... b6 $1 $17 21. Qd2 Ng7) 21. Rxc3 $15 {[%emt 0:07:47] aiming for Qc1.} Nxe4 {[%emt 0:00:37]} 22. Rxc8 {[%emt 0:01:48]} Bxc8 {[%emt 0:00:19]} 23. fxe4 {[%emt 0:00:06] Threatens to win with Qc1.} Qxg5 {[%emt 0:00:20] Hoping for ...Qg3+.} 24. Qd4 {[%emt 0:08:35]} Nf6 {[%emt 0:08:52]} 25. Rg1 {[%emt 0:04:16]} ({White should play} 25. Bf3 $15) 25... Bg4 $17 {[%emt 0:03:19]} 26. e5 {[%emt 0:06:31]} (26. Bxg4 $17 {was worth a try.} Nxg4 27. Qc3 Qh4+ 28. Kd1 Ne3+ 29. Kc1) 26... dxe5 $19 {[%emt 0:02:42] Dancing on a razor blade.} 27. Qc4 {[%emt 0:01:44] Loses the game.} (27. Bxg4 $17 {was the crucial defense.} Nxg4 28. Qa7 Qh4+ 29. Kd1) 27... Qh4+ {[%emt 0:04:00]} 28. Kd2 {[%emt 0:02:05][%cal Og1g4] [#] Rxg4! is the strong threat.} Bxe2 {[%emt 0:02:04]} ({Inferior is} 28... Qf2 29. Rxg4 f3 30. Rh4 $11 (30. d6+ Kg7 $17)) 29. Qxe2 {[%emt 0:04:03][%mdl 4096] Endgame KQR-KQN} f3 {[%emt 0:14:28][%cal Bf4f3,Bf3f2][%mdl 32]} 30. Qxe5 {[%emt 0:10:13]} Qf2+ {[%emt 0:00:31]} 31. Kd3 {[%emt 0:01:35]} Qxg1 {[%emt 0:00:49]} 32. Qxf6 {[%emt 0:02:52] KQ-KQ} Qd1+ {[%emt 0:00:51]} 33. Kc4 {[%emt 0:02:38]} Qe2+ {[%emt 0:00:37]} 34. Kc3 {[%emt 0:02:03]} f2 {[%emt 0:00:44] Black mates.} 35. Qd8+ {[%emt 0:00:10]} Kf7 {[%emt 0:00:18]} 36. Qc7+ {[%emt 0:01:21]} Qe7 {[%emt 0:00:26]} 37. d6 {[%emt 0:00:26]} Qxc7+ {[%emt 0:00:13] Weighted Error Value: White=1.12/Black=0.12 (very precise)} 0-1

[Event "41st Zalakaros Festival 2022"]
[Site "Zalakaros"]
[Date "2022.06.09"]
[Round "5.9"]
[White "Bernath, Bence"]
[Black "Kiss, Mate Jozsef"]
[Result "1/2-1/2"]
[ECO "B40"]
[WhiteElo "2202"]
[BlackElo "2030"]
[Annotator "TA"]
[PlyCount "74"]
[EventDate "2022.06.05"]
[EventType "swiss"]
[EventCountry "HUN"]
[SourceTitle "playchess.com"]
[Source "ChessBase"]
[SourceQuality "1"]
[TimeControl "40/5400+30:1800+30"]

{[%evp 16,74,33,21,91,95,100,84,89,69,65,62,75,68,92,0,131,127,129,50,58,-7,-4,-5,-2,-22,0,0,0,0,0,0,0,0,0,0,0,0,0,0,0,0,0,0,0,0,0,0,0,0,0,0,0,0,0,0,0,0,0,0,0]} 1. e4 {[%emt 0:00:39]} c5 {[%emt 0:00:35]} 2. Nf3 {[%emt 0:00:29]} e6 {[%emt 0:00:15]} 3. d4 {[%emt 0:00:26]} cxd4 {[%emt 0:00:05]} 4. Nxd4 {[%emt 0:00:28]} Nf6 {[%emt 0:00:16]} 5. Nc3 {[%emt 0:00:35]} Nc6 {[%emt 0:00:08]} 6. Nxc6 {[%emt 0:00:58]} bxc6 {[%emt 0:00:13]} 7. e5 {[%emt 0:00:09]} Nd5 {[%emt 0:00:07]} 8. Ne4 {[%emt 0:00:20]} Qc7 {[%emt 0:00:17]} 9. f4 $1 {[%emt 0:00:31]} Rb8 {[%emt 0:00:27] B45: Sicilian Four Knights.} (9... Qb6 $11 {keeps the balance.}) 10. c4 $1 $16 {[%emt 0:01:26]} Bb4+ {[%emt 0:00:15]} 11. Ke2 $1 {[%emt 0:00:15]} (11. Kf2 $6 f5 12. exf6 (12. cxd5 fxe4 13. d6 Qa5 $11) 12... Nxf6 13. Nxf6+ gxf6 $11) 11... O-O {[%emt 0:00:23][%cal Of7f6] White is better.} 12. a3 {[%emt 0:06:34]} Be7 {[%emt 0:00:45]} 13. cxd5 {[%emt 0:07:46]} cxd5 {[%emt 0:00:02] [#]} 14. Nd6 {[%emt 0:00:06]} Ba6+ {[%emt 0:01:40] [#]} 15. Kf2 $146 {[%emt 0:01:31]} (15. Ke1 $1 $16) ({Predecessor:} 15. Ke1 f6 16. Bxa6 Qa5+ 17. b4 Qxa6 18. Qe2 Qa4 19. Bd2 fxe5 20. fxe5 a5 21. Qg4 {1-0 (79) Iljiushenok,I (2524)-Pridorozhni,A (2593) Khanty-Mansiysk 2019}) 15... Bxf1 {[%emt 0:32:30]} (15... f6 $1 $11 16. Bxa6 Qb6+ 17. Kg3 (17. Be3 Qxa6 18. Qe2 Qxe2+ 19. Kxe2 fxe5 $11) 17... Qxa6) 16. Rxf1 {[%emt 0:00:07]} ({Weaker is} 16. Kxf1 f6 17. Ke1 fxe5 18. fxe5 Bxd6 19. exd6 Qxd6 $17) 16... Qc5+ {[%emt 0:00:58]} 17. Kg3 {[%emt 0:00:33]} (17. Be3 $16 Rxb2+ 18. Kf3) 17... f6 $1 $14 {[%emt 0:01:19]} 18. Kh3 {[%emt 0:10:34]} (18. h4 $1 $14) 18... fxe5 $11 {[%emt 0:17:01] The position is equal.} 19. fxe5 {[%emt 0:00:03]} Rxf1 {[%emt 0:09:24]} 20. Qxf1 {[%emt 0:01:19] Qf7+ is the strong threat.} Bxd6 {[%emt 0:01:49]} (20... Rf8 $5 {[%cal Rf8f1]} 21. Qe1 (21. Bf4 Bxd6 22. exd6 e5 $17) 21... Bxd6 22. exd6 d4 $11) 21. exd6 {[%emt 0:00:03]} Rf8 {[%emt 0:00:20]} 22. Qe2 {[%emt 0:00:42]} Qg1 $1 {[%emt 0:02:18]} 23. Qg4 {[%emt 0:01:19][%cal Oc1h6] White threatens Bh6! and mate.} g6 {[%emt 0:06:46]} 24. Bh6 $1 {[%emt 0:19:55][%csl LRf8,LRg1]} Qxa1 {[%emt 0:00:17]} 25. Bxf8 {[%emt 0:03:20]} Kxf8 {[%emt 0:00:16][%mdl 4096] Endgame KQ-KQ} 26. Qg5 {[%emt 0:00:07]} Qf1 {[%emt 0:05:29]} 27. Qd8+ {[%emt 0:00:48]} Kg7 {[%emt 0:01:17]} 28. Qxd7+ {[%emt 0:00:02]} Kf6 {[%emt 0:06:04] ( -> ...Qd3+)} 29. Qe7+ {[%emt 0:00:15]} (29. Qxa7 {is a self mate.} Qd3+ 30. Kg4 h5+ 31. Kh4 g5+ 32. Kxh5 Qg6+ 33. Kg4 Qe4+ 34. Kg3 Qf4+ 35. Kh3 Qh4#) 29... Ke5 {[%emt 0:00:53]} 30. d7 {[%emt 0:00:44]} Qf5+ {[%emt 0:01:34]} 31. Kh4 {[%emt 0:00:19] Black must now prevent Qg5.} Qf4+ {[%emt 0:01:45]} 32. Kh3 {[%emt 0:00:06]} Qf5+ {[%emt 0:00:27]} 33. g4 {[%emt 0:00:46]} Qf3+ {[%emt 0:00:23]} 34. Kh4 {[%emt 0:00:04] And now Qg7+ would win.} Qf2+ {[%emt 0:00:26]} 35. Kh3 {[%emt 0:00:40] Strongly threatening Qg7+.} Qf3+ {[%emt 0:00:20]} 36. Kh4 {[%emt 0:00:03] Threatens to win with Qg7+.} Qf2+ {[%emt 0:00:06]} 37. Kh3 {[%emt 0:00:25] Hoping for Qg7+.} Qf3+ {[%emt 0:00:07] Weighted Error Value: White=0.10 (very precise) /Black=0.12 (very precise)} 1/2-1/2

[Event "41st Zalakaros Festival 2022"]
[Site "Zalakaros"]
[Date "2022.06.09"]
[Round "5.10"]
[White "Ianov, Viktor"]
[Black "Lauda, Alexandr"]
[Result "0-1"]
[ECO "A05"]
[WhiteElo "2279"]
[BlackElo "1884"]
[Annotator "TA"]
[PlyCount "79"]
[EventDate "2022.06.05"]
[EventType "swiss"]
[EventCountry "HUN"]
[SourceTitle "playchess.com"]
[Source "ChessBase"]
[SourceQuality "1"]
[TimeControl "40/5400+30:1800+30"]

{[%evp 15,79,0,0,2,3,0,-4,-11,2,-29,-32,-39,0,31,22,0,2,8,61,64,122,105,118,75,179,82,88,89,77,60,73,64,61,54,64,64,64,63,66,63,62,69,110,95,134,131,173,69,85,12,79,0,0,-5,-9,-255,-76,-63,308,300,29970,29971,6622,6621,2883,2733]} 1. Nf3 {[%emt 0:00:32]} Nf6 {[%emt 0:00:37]} 2. g3 {[%emt 0:00:11]} g6 {[%emt 0:00:13]} 3. b3 {[%emt 0:00:10]} Bg7 {[%emt 0:00:55]} 4. Bb2 {[%emt 0:00:12]} O-O {[%emt 0:00:32]} 5. Bg2 {[%emt 0:00:07]} d6 {[%emt 0:00:41]} 6. d4 {[%emt 0:00:10]} b5 {[%emt 0:02:34]} 7. O-O {[%emt 0:00:27]} Bb7 {[%emt 0:00:34]} 8. Nbd2 {[%emt 0:00:12]} Nbd7 {[%emt 0:02:08]} 9. c4 {[%emt 0:00:13] A49: 1 d4 Nf6 2 Nf3 g6 3 g3: Anti-King's Indian systems.} bxc4 {[%emt 0:00:22]} 10. Nxc4 {[%emt 0:00:18]} a5 {[%emt 0:00:16]} 11. Rc1 {[%emt 0:00:39] The position is equal.} Ra6 {[%emt 0:01:01]} 12. Ne1 {[%emt 0:02:05]} Bxg2 {[%emt 0:03:05]} 13. Nxg2 {[%emt 0:00:39] [#]} c5 $146 {[%emt 0:00:35]} (13... Qa8 $15) ({Predecessor:} 13... Qa8 14. Nge3 c5 15. dxc5 Nxc5 16. Bxf6 Bxf6 17. Nd5 Ne4 18. Nc7 Qb7 19. Nxa6 Qxa6 {½-½ (38) Boe,M (2293)-Hilwerda,J (2275) Fredericia 2022}) 14. dxc5 $14 {[%emt 0:00:16]} Nxc5 {[%emt 0:00:11]} 15. Qc2 {[%emt 0:01:27]} Qd7 {[%emt 0:02:44]} 16. Rfd1 {[%emt 0:01:13]} Qh3 {[%emt 0:04:53]} (16... Rb8 $11) 17. Nf4 {[%emt 0:00:30]} Qh6 {[%emt 0:01:08]} (17... Qd7 $14) 18. Kg2 {[%emt 0:03:36]} Rb8 {[%emt 0:09:27]} 19. f3 {[%emt 0:03:35]} g5 {[%emt 0:07:24]} (19... Ne6 $16 {is a better defense.}) 20. Nd3 {[%emt 0:02:00]} (20. Bxf6 $18 {has better winning chances.} Bxf6 21. Nd5) 20... Ne6 $16 {[%emt 0:01:42][%cal Oa5a4]} 21. Ne3 {[%emt 0:06:13]} Qg6 {[%emt 0:01:44] Prevents Nf5.} 22. Qc4 {[%emt 0:00:51]} Ra7 {[%emt 0:01:21]} 23. Qa4 {[%emt 0:03:18]} h5 {[%emt 0:05:56]} 24. Rc6 {[%emt 0:03:09]} Kh7 {[%emt 0:03:26]} 25. Qc4 {[%emt 0:06:48]} g4 {[%emt 0:09:22]} 26. Bxf6 {[%emt 0:05:42]} gxf3+ {[%emt 0:02:42]} 27. exf3 {[%emt 0:00:11]} Bxf6 {[%emt 0:00:26]} 28. Nd5 {[%emt 0:01:33]} Be5 {[%emt 0:07:12]} 29. Qh4 {[%emt 0:04:05]} a4 {[%emt 0:02:32]} 30. b4 {[%emt 0:02:13]} ({Much less strong is} 30. bxa4 Qf5 31. Rc4 (31. Nxe7 Rxe7 32. Qxe7 Nd4 $11) 31... Bf6 32. Nxf6+ exf6 $16) 30... f6 {[%emt 0:01:51] [#]} 31. Rc4 {[%emt 0:01:13] Against Nd4} ({Resist} 31. Nxe5 $6 dxe5 32. Qc4 (32. Rxe6 Qc2+ 33. Kh3 Qf5+ 34. Kg2 Qxe6 $11) 32... Nd4 $14) (31. Qc4 $1 $18) 31... Rb5 {[%emt 0:01:49]} 32. Nf2 {[%emt 0:01:14] Pair of Knights!} (32. Ne3 $16) 32... Rab7 {[%emt 0:07:22]} (32... Ng7 $11) 33. f4 {[%emt 0:01:18]} ({White should try} 33. a3 $16) 33... Bb2 $11 {[%emt 0:03:35]} 34. g4 {[%emt 0:05:42]} Ng7 {[%emt 0:03:02] Inhibits f5. Threatens to win with ...Qf7.} 35. Kh1 $2 {[%emt 0:07:48] [#]} (35. Qh3 $1 $11) 35... Rxd5 $1 {[%emt 0:02:05][%mdl 512]} 36. Rxd5 $17 {[%emt 0:00:15] Black must now prevent Qh3.} Qb1+ $2 {[%emt 0:00:04][%mdl 8192] [#]} (36... Qf7 $15 {keeps the upper hand.} 37. Rxh5+ Nxh5 38. Qxh5+ Qxh5 39. gxh5 d5) 37. Kg2 $1 $18 {[%emt 0:00:57] Strongly threatening Rxh5+.} Qxa2 $2 {[%emt 0:02:03]} (37... Qg6 $18 38. Qh3 f5) 38. Rxh5+ {[%emt 0:00:33]} Nxh5 {[%emt 0:02:11]} 39. Qxh5+ {[%emt 0:00:22]} Kg7 {[%emt 0:00:03]} 40. Rc8 {[%mdl 32768] Weighted Error Value: White=0.37/Black=0.60. Loss on time!?} 0-1